[Event "44th Chess Olympiad Open 2022"]
[Site "Chennai"]
[Date "2022.08.07"]
[Round "9.6"]
[White "Kollars, Dmitrij"]
[Black "Kazakouski, Valery"]
[Result "0-1"]
[WhiteElo "2648"]
[BlackElo "2528"]
[Annotator "TA"]
[PlyCount "80"]
[EventDate "2022.??.??"]
[TimeControl "60"]

{[%evp 15,80,24,22,0,0,0,5,0,7,12,16,0,0,0,0,-156,-150,-149,-151,-149,-158,
-153,-136,-130,-135,-87,-81,-127,-135,-133,-120,-215,-236,-218,-229,-382,-400,
-402,-379,-382,-381,-552,-492,-1322,-876,-866,-858,-858,-851,-841,-840,-822,
-776,-1296,-1309,-1270,-1266,-1461,-1359,-2669,-2045,-1746,-1390,-4132,-1705,
-1219,-1153]} 1. e4 {[%emt 0:00:05]} e5 {[%emt 0:00:18]} 2. Nf3 {[%emt 0:00:10]
} Nc6 {[%emt 0:00:12]} 3. Bb5 {[%emt 0:00:18]} a6 {[%emt 0:00:10]} 4. Ba4 {
[%emt 0:00:04]} Nf6 {[%emt 0:00:11]} 5. O-O {[%emt 0:00:21]} Be7 {[%emt 0:00:
00]} 6. d3 {[%emt 0:00:24]} b5 {[%emt 0:00:51]} 7. Bb3 {[%emt 0:00:03]} O-O {
[%emt 0:00:36]} 8. a4 {[%emt 0:00:25]} b4 {[%emt 0:01:01]} 9. Nbd2 {[%emt 0:00:
00] C84: Closed Ruy Lopez: Unusual White 6th moves.} Bc5 {[%emt 0:01:02]} 10.
Nc4 {[%emt 0:04:43]} d6 {[%emt 0:00:25]} 11. c3 {[%emt 0:02:40] The position
is equal.} bxc3 {[%emt 0:03:31]} 12. bxc3 {[%emt 0:00:05]} Rb8 {[%emt 0:00:21]}
13. h3 {[%emt 0:07:58] Inhibits Bg4.} Be6 {[%emt 0:04:16]} 14. Ba2 {[%emt 0:00:
00]} h6 {[%emt 0:12:09]} 15. d4 $2 {[%emt 0:16:07]} (15. Re1 $11) 15... Nxe4
$17 {[%emt 0:08:43] [#]} (15... exd4 16. cxd4 Nb4 17. Bb3 $11 (17. dxc5 Nxa2
18. Ncd2 dxc5 $17)) 16. dxc5 $146 {[%emt 0:12:02]} ({Predecessor:} 16. Qd3 Nxc3
17. Qxc3 Nxd4 18. Kh2 Bb4 {0-1 (17) Molina Rodriguez,B (2144)-Turova,I (2422)
Santa Cruz de La Palma 2018}) 16... Nxc3 {[%emt 0:00:25]} 17. Qc2 {[%emt 0:00:
00]} Nxa2 {[%emt 0:01:33]} 18. Qxa2 {[%emt 0:00:04]} e4 {[%emt 0:11:03]} 19.
Nfd2 {[%emt 0:02:09]} d5 {[%emt 0:00:14] Black has strong compensation.} 20.
Na3 {[%emt 0:03:25][%cal Yc4a3,Ya3c2,Yc2b4]} Nb4 {[%emt 0:06:38]} 21. Qb2 {
[%emt 0:02:16]} (21. Qb3 $142) 21... Nd3 $36 {[%emt 0:00:00][%csl Yb2,Yc5]
Black is really pushing.} 22. Qd4 {[%emt 0:00:00]} Rb4 {[%emt 0:01:51] Black
is much more active.} 23. Qe3 {[%emt 0:01:22]} (23. Qc3 $17) 23... f5 $19 {
[%emt 0:02:17][%cal Yf7f5,Yf5f4]} ({Worse is} 23... Rxa4 24. Nc2 Rxa1 25. Nxa1
$17) 24. Nc2 {[%emt 0:02:19]} f4 {[%emt 0:15:30]} 25. Qxd3 {[%emt 0:02:00]} (
25. Qe2 Rc4 26. Nxc4) 25... exd3 {[%emt 0:00:31]} 26. Nxb4 {[%emt 0:00:03]} f3
{[%emt 0:00:53]} 27. Nxf3 {[%emt 0:02:15]} Rxf3 {[%emt 0:00:49]} 28. gxf3 {
[%emt 0:00:06]} (28. Ra3 $142 Qh4 29. Rxd3 Rxd3 30. Nxd3) 28... Qf6 {[%emt 0:
00:48] Black is clearly winning.} 29. Bd2 {[%emt 0:05:15]} (29. Bf4 $142 Bxh3
30. Nxd5) 29... Qxf3 {[%emt 0:00:00]} 30. Nxd3 {[%emt 0:00:55]} Qxd3 {[%emt 0:
00:59]} 31. Rfe1 {[%emt 0:01:02]} Bxh3 {[%emt 0:04:10] [#] ( -> ...Qg6+)} 32.
Re3 {[%emt 0:00:06]} Qxd2 {[%emt 0:00:00]} 33. Rxh3 {[%emt 0:00:04] Endgame
KQ-KRR} d4 {[%emt 0:00:41][%cal Yd5d4,Yd4d3,Yd3d2]} 34. Rg3 {[%emt 0:00:38]} d3
{[%emt 0:00:34]} 35. Rb1 {[%emt 0:00:15]} Kh7 {[%emt 0:02:12] aiming for ...
Qc2.} 36. Kg2 {[%emt 0:00:51]} Qc2 {[%emt 0:03:40][%csl Ya4,Yb1,Yc5]} 37. Re1 {
[%emt 0:00:00]} d2 {[%emt 0:00:52]} 38. Re7 {[%emt 0:00:21]} h5 {[%emt 0:01:15]
} (38... d1=Q $2 {leads to mate.} 39. Rexg7+ Kh8 40. Rg8+ Kh7 41. R3g7#) 39.
Rexg7+ {[%emt 0:02:24]} Kh6 {[%emt 0:00:20]} 40. Re7 {[%emt 0:00:15] [#]} Qf5
$1 {[%emt 0:00:20] Weighted Error Value: White=0.82/Black=0.12 (very precise)}
({Weaker is} 40... d1=Q 41. Re6+ Kh7 42. Re7+ Kh8 43. Re8+ Kh7 44. Re7+ Kh8 45.
Re8+ Kh7 46. Re7+ $11) 0-1

[Event "44th Chess Olympiad Open 2022"]
[Site "Chennai"]
[Date "2022.08.07"]
[Round "9.6"]
[White "Laurusas, Tomas"]
[Black "Keymer, Vincent"]
[Result "0-1"]
[WhiteElo "2561"]
[BlackElo "2686"]
[Annotator "TA"]
[PlyCount "74"]
[EventDate "2022.??.??"]
[TimeControl "60"]

{[%evp 20,74,22,0,0,7,17,0,19,4,25,0,20,-19,-3,-43,-43,-43,-34,-27,-36,-29,-39,
-35,-27,-36,0,0,0,-7,0,-23,-17,-27,-26,-27,-35,-33,-45,-72,-12,-12,-52,-47,-17,
-468,-451,-1252,-1236,-1150,-971,-1233,-1204,-1480,-1449,-1208,-1127]} 1. d4 {
[%emt 0:00:03]} Nf6 {[%emt 0:00:05]} 2. c4 {[%emt 0:00:08]} e6 {[%emt 0:00:04]}
3. Nf3 {[%emt 0:00:05]} d5 {[%emt 0:00:03]} 4. Nc3 {[%emt 0:00:07]} c6 {
[%emt 0:00:09]} 5. e3 {[%emt 0:00:06]} Nbd7 {[%emt 0:00:06]} 6. Qc2 {[%emt 0:
00:00]} Bd6 {[%emt 0:00:35]} 7. Bd3 {[%emt 0:00:07]} O-O {[%emt 0:04:14]} 8.
O-O {[%emt 0:00:37]} dxc4 {[%emt 0:06:25]} 9. Bxc4 {[%emt 0:00:12]} e5 {
[%emt 0:00:13]} 10. h3 {[%emt 0:00:09]} Qe7 {[%emt 0:03:42]} 11. Bb3 {[%emt 0:
00:00]} a5 $1 {[%emt 0:04:37] outshines the older 11...Bc7. D46: Semi-Slav: 5
e3 Nbd7 6 Bd3, Black avoids the Meran.} 12. a3 {[%emt 0:06:43]} Bb8 $5 {
[%emt 0:02:57] Leaves trodden paths.} 13. Rd1 {[%emt 0:06:14]} h6 {[%emt 0:14:
20] The position is equal.} 14. Nh4 {[%emt 0:07:14] Strongly threatening Ng6.}
Rd8 {[%emt 0:00:25]} 15. Nf5 {[%emt 0:06:05] [#]} Qe8 $146 {[%emt 0:08:20]} ({
Predecessor:} 15... Qf8 16. Bd2 Re8 17. dxe5 Bxe5 18. f4 Bb8 19. Kh1 b5 20. Be1
Kh8 21. Bh4 Ra6 22. Qf2 g6 23. Ng3 Nh7 24. Bc2 {½-½ (26) Stone,G (2273)
-Fortune,J (2200) ICCF email 2014}) 16. dxe5 {[%emt 0:05:24]} Nxe5 {[%emt 0:02:
36]} 17. f4 {[%emt 0:00:58]} Rxd1+ {[%emt 0:02:13]} 18. Nxd1 {[%emt 0:00:02]}
a4 {[%emt 0:06:40]} 19. Ba2 {[%emt 0:01:00]} Bxf5 {[%emt 0:00:00]} 20. Qxf5 {
[%emt 0:00:08]} Ned7 {[%emt 0:00:04]} 21. Nf2 {[%emt 0:09:26]} Ba7 {[%emt 0:02:
18]} 22. Bd2 {[%emt 0:00:08]} Nc5 {[%emt 0:07:31]} 23. Re1 {[%emt 0:01:13]} Rd8
{[%emt 0:00:39]} 24. Bc3 {[%emt 0:04:36]} Nce4 {[%emt 0:00:00]} 25. Nxe4 {
[%emt 0:00:32]} (25. Bxf6 $5 Nxf6 26. Qa5 $11) 25... Qxe4 {[%emt 0:00:56]} 26.
Qa5 {[%emt 0:00:06]} Bxe3+ {[%emt 0:03:27]} 27. Kh1 {[%emt 0:00:05]} b6 $1 {
[%emt 0:03:43]} 28. Qa7 {[%emt 0:03:52]} Nd5 $36 {[%emt 0:01:23] Black has
some pressure. Active counter play!} 29. Be5 {[%emt 0:03:23]} Qc2 {[%emt 0:12:
13]} (29... Rf8 $17 30. Bb1 Qc4) 30. Bxd5 $11 {[%emt 0:08:07]} cxd5 {[%emt 0:
00:34]} 31. Qe7 {[%emt 0:01:20]} Rc8 {[%emt 0:02:09] [#] Threatens to win with
...Qd2.} 32. Bxg7 $2 {[%emt 0:00:46] White does not recover from this.} (32.
Qd7 $1 $11 Bd2 33. Rg1) 32... Bf2 $19 {[%emt 0:01:47][%cal Ye3f2,Yf2e1,Ye1d2,
Yd2g5] Black is clearly winning.} ({Inferior is} 32... Kxg7 33. Rxe3 Qf5 34.
Qd6 $11) 33. Be5 {[%emt 0:05:22]} (33. Bc3 $142 d4 34. Qd7 Rxc3 35. Qe8+ (35.
Re8+ $2 Kg7 $19) 35... Kg7 36. bxc3 Bxe1 37. Qxe1 dxc3 38. Qe5+ Kh7 39. Kh2)
33... Bxe1 {[%emt 0:01:33]} 34. Qf6 {[%emt 0:00:02]} Qh7 {[%emt 0:00:09] ( -> .
..Bg3)} 35. f5 {[%emt 0:00:19]} Bd2 {[%emt 0:02:45] [#] aiming for ...Bg5.} 36.
g4 {[%emt 0:00:38]} Bg5 {[%emt 0:00:31]} 37. Qxb6 {[%emt 0:00:02]} h5 {[%emt 0:
00:00] Weighted Error Value: White=0.65/Black=0.09 (flawless)} 0-1

[Event "44th Chess Olympiad Open 2022"]
[Site "Chennai"]
[Date "2022.08.07"]
[Round "9.6"]
[White "Pultinevicius, Paulius"]
[Black "Svane, Rasmus"]
[Result "1-0"]
[WhiteElo "2539"]
[BlackElo "2649"]
[Annotator "ChessBase"]
[PlyCount "105"]
[EventDate "2022.??.??"]
[TimeControl "60"]

1. d4 {[%emt 0:00:02]} Nf6 {[%emt 0:00:07]} 2. c4 {[%emt 0:00:05]} e6 {[%emt 0:
00:00]} 3. Nf3 {[%emt 0:00:03]} d5 {[%emt 0:00:07]} 4. Nc3 {[%emt 0:00:06]} Be7
{[%emt 0:00:07]} 5. Bg5 {[%emt 0:00:32]} h6 {[%emt 0:00:09]} 6. Bh4 {[%emt 0:
00:00]} dxc4 {[%emt 0:00:08]} 7. e3 {[%emt 0:04:19]} c5 {[%emt 0:00:13]} 8.
Bxc4 {[%emt 0:07:25]} cxd4 {[%emt 0:00:36]} 9. exd4 {[%emt 0:00:12]} Nc6 {
[%emt 0:00:43]} 10. O-O {[%emt 0:00:54]} O-O {[%emt 0:00:08]} 11. Re1 {[%emt 0:
00:00]} Nh5 {[%emt 0:01:24]} 12. Bxe7 {[%emt 0:02:37]} Nxe7 {[%emt 0:00:06]}
13. Qb3 {[%emt 0:07:03]} a6 {[%emt 0:20:57]} 14. a4 {[%emt 0:07:45]} Nf6 {
[%emt 0:13:21]} 15. Rad1 {[%emt 0:02:42]} Nc6 {[%emt 0:18:50]} 16. d5 {[%emt 0:
00:00]} exd5 {[%emt 0:08:29]} 17. Nxd5 {[%emt 0:00:10]} Nxd5 {[%emt 0:00:25]}
18. Bxd5 {[%emt 0:02:20]} Qf6 {[%emt 0:02:54]} 19. Nd2 {[%emt 0:13:23]} Nd4 {
[%emt 0:16:20]} 20. Qc3 {[%emt 0:08:39]} Nf5 {[%emt 0:06:48]} 21. Qxf6 {
[%emt 0:02:34]} gxf6 {[%emt 0:00:02]} 22. Nc4 {[%emt 0:03:59]} Rb8 {[%emt 0:00:
00]} 23. Nb6 {[%emt 0:01:42]} Kg7 {[%emt 0:01:21]} 24. b4 {[%emt 0:03:51]} Rd8
{[%emt 0:01:59]} 25. a5 {[%emt 0:05:50]} Be6 {[%emt 0:01:25]} 26. Bxe6 {
[%emt 0:01:25]} Rxd1 {[%emt 0:00:24]} 27. Rxd1 {[%emt 0:00:05]} fxe6 {[%emt 0:
00:00]} 28. Rd7+ {[%emt 0:00:43]} Kg6 {[%emt 0:00:10]} 29. Kf1 {[%emt 0:00:52]}
e5 {[%emt 0:01:18]} 30. Ke2 {[%emt 0:00:25]} Nd4+ {[%emt 0:00:24]} 31. Kd3 {
[%emt 0:00:12]} Kf5 {[%emt 0:00:45]} 32. Kc4 {[%emt 0:03:54]} Nb5 {[%emt 0:00:
00]} 33. Kd5 {[%emt 0:04:06]} Rg8 {[%emt 0:00:28]} 34. g3 {[%emt 0:00:49]} Rg4
{[%emt 0:00:22]} 35. Kc5 {[%emt 0:00:38]} Rd4 {[%emt 0:00:41]} 36. Nd5 {
[%emt 0:01:37]} Nc3 {[%emt 0:00:50]} 37. Ne3+ {[%emt 0:01:47]} Ke4 {[%emt 0:00:
00]} 38. Rxb7 {[%emt 0:00:43]} Kd3 {[%emt 0:00:52]} 39. Kb6 {[%emt 0:00:42]}
Rxb4+ {[%emt 0:00:32]} 40. Kxa6 {[%emt 0:00:06]} Rd4 {[%emt 0:00:30]} 41. Rb3 {
[%emt 0:31:21]} Kd2 {[%emt 0:00:55]} 42. Kb6 {[%emt 0:00:00]} Rd8 {[%emt 0:00:
00]} 43. Kc7 {[%emt 0:00:00]} Ra8 {[%emt 0:01:03]} 44. Kb7 {[%emt 0:00:00]} Re8
{[%emt 0:01:46]} 45. a6 {[%emt 0:00:00]} Re7+ {[%emt 0:05:28]} 46. Kb6 {
[%emt 0:00:00]} Ne4 {[%emt 0:05:16]} 47. a7 {[%emt 0:00:00]} Re8 {[%emt 0:00:
00]} 48. Nc4+ {[%emt 0:00:00]} Kc2 {[%emt 0:00:31]} 49. Ra3 {[%emt 0:00:00]}
Nxf2 {[%emt 0:01:59]} 50. Nd6 {[%emt 0:00:00]} Rd8 {[%emt 0:00:34]} 51. Ra2+ {
[%emt 0:00:00]} Kd1 {[%emt 0:01:18]} 52. Rxf2 {[%emt 0:00:00]} Rxd6+ {[%emt 0:
00:00]} 53. Kc7 {[%emt 0:00:00]} 1-0

[Event "44th Chess Olympiad Open 2022"]
[Site "Chennai"]
[Date "2022.08.07"]
[Round "9.7"]
[White "Yilmaz, Mustafa"]
[Black "Cordova, Emilio"]
[Result "1/2-1/2"]
[WhiteElo "2634"]
[BlackElo "2549"]
[Annotator "TA"]
[PlyCount "117"]
[EventDate "2022.??.??"]
[TimeControl "60"]

{[%evp 15,117,27,30,18,25,22,36,31,47,49,54,53,66,45,69,50,41,48,72,62,50,42,
54,52,61,74,65,77,80,70,68,68,77,68,62,53,45,44,36,47,42,46,53,40,70,72,68,58,
60,13,48,0,22,29,27,28,25,30,72,72,76,59,85,78,83,60,97,89,269,235,258,256,226,
188,181,165,149,146,230,231,375,362,329,203,202,216,280,202,201,0,0,0,0,0,0,0,
0,0,0,0,0,0,0,0]} 1. d4 {[%emt 0:00:03]} Nf6 {[%emt 0:00:34]} 2. c4 {[%emt 0:
00:00]} e6 {[%emt 0:00:06]} 3. Nf3 {[%emt 0:00:05]} b6 {[%emt 0:00:46]} 4. g3 {
[%emt 0:00:03]} Bb7 {[%emt 0:01:11]} 5. Bg2 {[%emt 0:00:05]} Bb4+ {[%emt 0:00:
00]} 6. Bd2 {[%emt 0:00:04]} Bxd2+ {[%emt 0:01:33]} 7. Qxd2 {[%emt 0:00:05]}
O-O {[%emt 0:00:09]} 8. O-O {[%emt 0:00:18]} d6 {[%emt 0:00:42]} 9. Rd1 {
[%emt 0:00:10] E16: Queen's Indian: 4 g3 Bb7 5 Bg2 Bb4+.} Nbd7 {[%emt 0:00:25]}
10. Qd3 {[%emt 0:00:31]} Be4 {[%emt 0:11:37]} 11. Qe3 {[%emt 0:00:17] White is
slightly better.} a5 {[%emt 0:12:21]} 12. Nc3 {[%emt 0:02:33]} Bb7 {[%emt 0:00:
00]} 13. Qd3 {[%emt 0:04:35] [#]} h6 $146 {[%emt 0:02:03]} ({Predecessor:} 
13... Re8 14. e4 e5 15. d5 Nc5 16. Qc2 Bc8 17. Nd2 Bd7 18. Nf1 Qb8 19. Qe2 Qb7
{½-½ (85) Holm,K (2456)-Lajthajm,B (2359) Belgrade 2021}) 14. b3 {[%emt 0:00:
00]} Qb8 {[%emt 0:11:14]} 15. d5 {[%emt 0:04:39]} Nc5 {[%emt 0:11:41]} 16. Qc2
{[%emt 0:01:55]} exd5 {[%emt 0:00:51]} 17. Nxd5 {[%emt 0:11:57]} Bxd5 {[%emt 0:
00:00]} 18. cxd5 {[%emt 0:00:07]} b5 {[%emt 0:00:08][%cal Yb6b5,Yb5b4]} 19. Nd4
{[%emt 0:07:20]} b4 {[%emt 0:03:59]} 20. Nc6 {[%emt 0:04:08]} Qb6 {[%emt 0:00:
18]} 21. Rd4 {[%emt 0:16:33]} Rfe8 {[%emt 0:00:59]} 22. e3 {[%emt 0:00:00]}
Nfd7 {[%emt 0:03:06]} 23. a3 {[%emt 0:02:23]} bxa3 {[%emt 0:06:38]} 24. Rxa3 {
[%emt 0:01:50]} Nb8 $1 {[%emt 0:00:26]} 25. Qc3 {[%emt 0:08:08][%cal Rc6a5]
0x0.001b83b2baafdp-1022s more active pieces. The black rooks are badly placed.}
(25. Rb4 $5 axb4 26. Rxa8 $14) 25... Nxc6 {[%emt 0:07:38]} 26. dxc6 {[%emt 0:
00:01]} Rab8 {[%emt 0:00:50][%cal Rc5b3]} 27. Bd5 {[%emt 0:14:27]} Re5 {
[%emt 0:00:20]} 28. Qc4 {[%emt 0:00:30]} Ne6 {[%emt 0:02:00]} 29. Re4 {[%emt 0:
03:39] Hoping for Rxe5.} Rxe4 {[%emt 0:01:57]} 30. Qxe4 {[%emt 0:01:58]} Qc5 {
[%emt 0:02:20]} 31. Ra4 {[%emt 0:03:03]} Kh8 {[%emt 0:07:45]} 32. Rc4 {[%emt 0:
05:24]} (32. h4 $14 {should be considered.}) 32... Qb5 {[%emt 0:00:49]} 33. Rc2
{[%emt 0:01:18]} (33. Rc1 $1 $14 {deserves consideration.}) 33... Nc5 {[%emt 0:
03:01][%cal Ye6c5,Yc5d3,Yd3e5,Ye5f3]} (33... Ng5 $5 {[%cal Rg5e4]} 34. Qf5 Nh7
$11) 34. Qf5 {[%emt 0:00:58]} Qd3 {[%emt 0:00:36]} 35. Qxd3 {[%emt 0:00:19]}
Nxd3 {[%emt 0:00:04]} 36. Bxf7 $11 {[%emt 0:00:13] Endgame KRB-KRN} a4 {
[%emt 0:00:04]} 37. Rc3 {[%emt 0:00:36]} ({Don't blunder} 37. bxa4 $2 Rb1+ 38.
Kg2 Ne1+ 39. Kh3 Nxc2 $19) 37... Ne5 {[%emt 0:00:49]} 38. Bd5 {[%emt 0:00:21]}
(38. Be6 $5 {[%cal Rb3a4]}) 38... axb3 {[%emt 0:01:03]} 39. Bxb3 {[%emt 0:00:
12]} ({Don't play} 39. Rxb3 Rxb3 40. Bxb3 Nxc6 $11) 39... g5 {[%emt 0:00:03]}
40. h3 {[%emt 0:01:21]} h5 {[%emt 0:00:05]} 41. f4 {[%emt 0:09:48]} Nf3+ {
[%emt 0:03:22]} (41... gxf4 $16 42. exf4 Ng6) 42. Kf2 $18 {[%emt 0:05:33]} g4 {
[%emt 0:03:17]} 43. hxg4 {[%emt 0:00:53]} hxg4 {[%emt 0:00:00]} 44. Ke2 {
[%emt 0:03:54]} Kg7 {[%emt 0:01:16]} 45. Be6 {[%emt 0:03:16]} Rb2+ {[%emt 0:01:
27] [#]} 46. Kd1 $1 {[%emt 0:02:33]} Nh2 {[%emt 0:14:18]} (46... Rd2+ $16 47.
Kc1 Rg2) 47. Rc2 {[%emt 0:00:51]} Rb1+ {[%emt 0:00:04]} (47... Rxc2 $142 48.
Kxc2 d5) 48. Ke2 {[%emt 0:00:14]} Kf6 {[%emt 0:00:08]} 49. Bd7 {[%emt 0:02:10]}
Rh1 {[%emt 0:00:05]} 50. Kd3 {[%emt 0:01:22]} Nf3 {[%emt 0:00:53]} 51. Ke4 {
[%emt 0:00:53]} Nh2 {[%emt 0:03:16][%cal Yh1d1] [#] .. .Rd1! is the strong
threat.} 52. Ra2 $2 {[%emt 0:03:26]} (52. Rd2 $1 $18) 52... Rd1 $1 $11 {
[%emt 0:00:59][%csl Gd1][%cal Rd6d5] The position is equal.} 53. Ra5 {[%emt 0:
00:01] Prevents d5+.} Nf1 {[%emt 0:00:46][%cal Rf1g3]} 54. Bxg4 {[%emt 0:01:24]
} d5+ {[%emt 0:00:13]} 55. Kf3 {[%emt 0:00:32] Threatens to win with Kf2.} Rd2
{[%emt 0:00:18][%cal Rf1h2]} 56. e4 {[%emt 0:00:05] And now e5+ would win.}
Nh2+ {[%emt 0:03:32]} 57. Ke3 {[%emt 0:00:02]} Nf1+ {[%emt 0:00:21]} 58. Kf3 {
[%emt 0:00:03] aiming for e5+.} Nh2+ {[%emt 0:00:07]} 59. Ke3 {[%emt 0:00:02]
White really could win this. Weighted Error Value: White=0.16 (very precise) /
Black=0.15 (very precise)} 1/2-1/2

[Event "44th Chess Olympiad Open 2022"]
[Site "Chennai"]
[Date "2022.08.07"]
[Round "9.7"]
[White "Cruz, Cristhian"]
[Black "Can, Emre"]
[Result "0-1"]
[WhiteElo "2579"]
[BlackElo "2606"]
[Annotator "RC"]
[PlyCount "54"]
[EventDate "2022.??.??"]
[TimeControl "60"]

1. d4 {[%emt 0:00:03]} d5 {[%emt 0:00:17]} 2. c4 {[%emt 0:00:32]} e6 {[%emt 0:
00:00]} 3. Nc3 {[%emt 0:00:50]} c6 {[%emt 0:00:31]} 4. e3 {[%emt 0:00:51]} Nf6
{[%emt 0:00:31]} 5. Nf3 {[%emt 0:00:40]} Nbd7 {[%emt 0:00:49]} 6. Qc2 {[%emt 0:
00:00]} Bd6 {[%emt 0:00:38]} 7. Bd3 {[%emt 0:00:57]} O-O {[%emt 0:01:13]} 8.
O-O {[%emt 0:00:36]} dxc4 {[%emt 0:00:51]} 9. Bxc4 {[%emt 0:00:05]} b5 {
[%emt 0:00:33]} 10. Bd3 {[%emt 0:00:34]} Bb7 {[%emt 0:00:40]} 11. a3 {[%emt 0:
00:00]} Rc8 {[%emt 0:27:28]} 12. Rd1 {[%emt 0:01:50]} c5 {[%emt 0:19:23]} 13.
Bxb5 {[%emt 0:05:19]} Bxf3 {[%emt 0:02:35]} 14. gxf3 {[%emt 0:00:36]} cxd4 {
[%emt 0:03:14]} 15. Rxd4 {[%emt 0:04:22]} Nd5 {[%emt 0:00:15]} 16. f4 {[%emt 0:
00:00]} N7f6 {[%emt 0:11:22]} 17. Rc4 {[%emt 0:19:17]} Rxc4 {[%emt 0:10:58]}
18. Bxc4 {[%emt 0:00:09]} Qc8 {[%emt 0:00:08]} 19. Bd3 {[%emt 0:20:33]} Nxc3 {
[%emt 0:00:11]} 20. Qxc3 {[%emt 0:03:22]} Qb8 {[%emt 0:00:06]} 21. Qd2 {
[%emt 0:15:49]} Rd8 {[%emt 0:01:02]} 22. Qe2 {[%emt 0:08:27]} e5 {[%emt 0:00:
00]} 23. b4 {[%emt 0:06:18]} exf4 {[%emt 0:01:43]} 24. e4 {[%emt 0:01:55]} Be5
{[%emt 0:01:13]} 25. Ra2 {[%emt 0:00:57]} Qc8 {[%emt 0:01:58]} 26. Rc2 {
[%emt 0:00:56]} Qh3 {[%emt 0:00:32]} 27. f3 {[%emt 0:00:13]} Bd4+ {[%emt 0:00:
00]} 0-1

[Event "44th Chess Olympiad Open 2022"]
[Site "Chennai"]
[Date "2022.08.07"]
[Round "9.7"]
[White "Sanal, Vahap"]
[Black "Terry, Renato"]
[Result "0-1"]
[WhiteElo "2574"]
[BlackElo "2502"]
[Annotator "TA"]
[PlyCount "104"]
[EventDate "2022.??.??"]
[TimeControl "60"]

{[%evp 18,104,55,47,49,49,51,55,54,56,47,16,18,8,13,9,12,10,11,8,6,0,0,0,-8,
-16,-16,-20,-3,-34,-25,-39,-35,-100,-65,-83,-87,-88,-55,-59,-49,-108,-40,-51,
-34,-52,-23,-27,-21,-25,-20,-32,-26,-25,-16,-41,-25,-43,-10,-28,0,-40,-46,-48,
-40,-41,-49,-51,-41,-47,0,0,0,0,0,0,0,-251,-199,-458,-460,-554,-534,-528,-521,
-29959,-29962,-6487,-2119]} 1. Nf3 {[%emt 0:00:06]} Nf6 {[%emt 0:00:55]} 2. c4
{[%emt 0:00:10]} d6 {[%emt 0:00:40]} 3. d4 {[%emt 0:00:32]} Nbd7 {[%emt 0:00:
00]} 4. Nc3 {[%emt 0:01:58]} e5 {[%emt 0:00:06]} 5. e4 {[%emt 0:00:33]} Be7 {
[%emt 0:00:19]} 6. Be2 {[%emt 0:00:13]} O-O {[%emt 0:00:19]} 7. O-O {[%emt 0:
00:00]} c6 {[%emt 0:00:39]} 8. Qc2 {[%emt 0:05:22]} Re8 {[%emt 0:11:14]} 9. Rd1
{[%emt 0:04:17]} Qc7 {[%emt 0:01:20]} 10. d5 {[%emt 0:04:36]} a5 {[%emt 0:00:
00] A55: Old Indian Defence with Nf3 and e4.} 11. Be3 {[%emt 0:02:59]} Ng4 {
[%emt 0:04:16]} 12. Bd2 {[%emt 0:01:31]} Nc5 {[%emt 0:04:17] White is slightly
better.} 13. h3 {[%emt 0:10:23]} Nf6 {[%emt 0:00:15] [#]} 14. Rac1 $146 {
[%emt 0:00:27]} ({Predecessor:} 14. Be3 Bd7 15. Rac1 cxd5 16. cxd5 Rec8 17. Nd2
a4 18. Qb1 Qb8 19. Nb5 Ra5 20. Nc3 {0-1 (68) Laxman,R (2411)-Tomb,M (2084)
Chess.com INT 2021}) 14... Bd7 {[%emt 0:01:32]} 15. Qb1 {[%emt 0:04:22]} Qb8 {
[%emt 0:33:50]} 16. Be3 {[%emt 0:13:57]} cxd5 {[%emt 0:00:51]} 17. cxd5 {
[%emt 0:00:17]} Rc8 {[%emt 0:04:16]} 18. Nd2 {[%emt 0:18:26]} b5 {[%emt 0:00:
00] [#] ...b4 is the strong threat.} 19. Bf1 {[%emt 0:02:29]} Bd8 {[%emt 0:00:
00]} 20. Ne2 {[%emt 0:02:50]} Bb6 {[%emt 0:00:43]} 21. Ng3 {[%emt 0:00:09]} Qa7
{[%emt 0:02:27]} 22. Be2 {[%emt 0:03:40]} Na4 {[%emt 0:03:38]} 23. Ndf1 {
[%emt 0:00:10]} g6 {[%emt 0:00:40]} 24. Bxb6 {[%emt 0:06:43]} Qxb6 {[%emt 0:00:
00]} 25. Rd3 {[%emt 0:00:21]} (25. Nd2 $15) 25... Kg7 {[%emt 0:02:50] Black is
more active.} 26. b3 {[%emt 0:04:06] [#]} Rxc1 $1 {[%emt 0:01:46]} ({But not} 
26... Nc5 $6 27. Re3 $11) 27. Qxc1 {[%emt 0:00:06]} Nc5 {[%emt 0:00:02]} 28.
Re3 {[%emt 0:01:03]} Rc8 {[%emt 0:00:44][%cal Yc5e4] Strongly threatening ...
Ncxe4!} 29. Qd2 {[%emt 0:00:12]} (29. Qd1 $15) 29... b4 {[%emt 0:02:24]} (29...
h5 $17 {White must now prevent ...h4.} 30. h4 Qd8) 30. Qb2 {[%emt 0:06:31]} Re8
{[%emt 0:02:38]} 31. Nd2 {[%emt 0:00:18]} h6 {[%emt 0:00:55]} 32. Nc4 {[%emt 0:
00:00]} Qc7 {[%emt 0:00:01]} 33. Qb1 {[%emt 0:02:38]} Bc8 {[%emt 0:00:15]} 34.
Nf1 {[%emt 0:00:35]} Ba6 {[%emt 0:00:42]} 35. Nfd2 {[%emt 0:00:08]} Bxc4 {
[%emt 0:00:38]} 36. Nxc4 {[%emt 0:01:01]} Ra8 {[%emt 0:00:12]} 37. Nd2 {
[%emt 0:02:25]} Qb6 {[%emt 0:00:33]} 38. Bd1 {[%emt 0:01:05]} Qc7 {[%emt 0:00:
00]} 39. g3 {[%emt 0:00:32]} Ncd7 {[%emt 0:00:55]} 40. Be2 {[%emt 0:00:32]} Rc8
{[%emt 0:00:01] Hoping for ...Qc1+.} 41. Bc4 {[%emt 0:07:28]} Qc5 {[%emt 0:00:
00]} 42. Kg2 {[%emt 0:01:35]} Nb6 {[%emt 0:14:28]} 43. Qd3 {[%emt 0:03:02]}
Nfd7 {[%emt 0:00:17]} (43... a4 $15) 44. Bb5 $11 {[%emt 0:08:19]} Rc7 {[%emt 0:
00:00]} 45. Bxd7 {[%emt 0:05:08]} Nxd7 {[%emt 0:00:47]} 46. Re2 {[%emt 0:01:03]
} Qc2 {[%emt 0:06:35]} 47. Qa6 {[%emt 0:01:43]} (47. Qe3 $11 {and White stays
safe.}) 47... Qd1 {[%emt 0:00:15] ( -> ...Rc1)} 48. Nf3 $2 {[%emt 0:01:30]} (
48. Nf1 Rc2 49. Rxc2 Qxc2 50. Qxd6 Qxe4+ 51. Kg1) 48... Rc3 $19 {[%emt 0:00:19]
} ({Don't take} 48... Rc1 49. Re1 Qc2 50. Rxc1 Qxc1 51. Qxd6 $18) 49. Re3 {
[%emt 0:04:28]} Rxe3 {[%emt 0:00:47]} ({Not} 49... Rc1 50. Re1 Qc2 51. Rxc1
Qxc1 52. Qxd6 $18) 50. fxe3 {[%emt 0:00:02]} Nc5 {[%emt 0:00:10]} 51. Qxd6 {
[%emt 0:00:49]} Qe2+ {[%emt 0:00:29]} 52. Kg1 {[%emt 0:00:02]} Nd3 {[%emt 0:00:
59] Weighted Error Value: White=0.48/Black=0.09 (flawless)} 0-1